[Event "Early-Titled-Tuesday-Blitz-December-26-2023"]
[Site "Chess.com"]
[Date "2023.12.26"]
[Round "2"]
[White "ahkashefi2800"]
[Black "TanitoluwaAps116"]
[Result "1/2-1/2"]
[WhiteElo "2555"]
[BlackElo "2748"]
[TimeControl "180+1"]
[EndTime "8:18:38 PST"]
[Termination "Game drawn - insufficient material"]

1. d4 {[%clk 0:02:59.2]} 1... Nf6 {[%clk 0:02:54.4]} 2. Nf3 {[%clk 0:02:57.8]}
2... e6 {[%clk 0:02:45.3]} 3. g3 {[%clk 0:02:55.4]} 3... b5 {[%clk 0:02:43.4]}
4. Bg2 {[%clk 0:02:55.5]} 4... Bb7 {[%clk 0:02:42.4]} 5. Bg5 {[%clk 0:02:55.7]}
5... c5 {[%clk 0:02:40.5]} 6. c3 {[%clk 0:02:55.5]} 6... cxd4 {[%clk 0:02:38.3]}
7. cxd4 {[%clk 0:02:55.5]} 7... Be7 {[%clk 0:02:36.7]} 8. O-O {[%clk 0:02:55.2]}
8... a6 {[%clk 0:02:35.3]} 9. a4 {[%clk 0:02:52.7]} 9... b4 {[%clk 0:02:34.6]}
10. Nbd2 {[%clk 0:02:49.7]} 10... d6 {[%clk 0:02:31.1]} 11. Rc1 {[%clk
0:02:47.3]} 11... Nbd7 {[%clk 0:02:27.6]} 12. Re1 {[%clk 0:02:28.9]} 12... O-O
{[%clk 0:02:25.1]} 13. e4 {[%clk 0:02:27.4]} 13... h6 {[%clk 0:02:11.1]} 14.
Bxf6 {[%clk 0:02:26.7]} 14... Bxf6 {[%clk 0:01:59.5]} 15. Qe2 {[%clk 0:02:23.1]}
15... a5 {[%clk 0:01:43]} 16. e5 {[%clk 0:02:14]} 16... dxe5 {[%clk 0:01:41.1]}
17. dxe5 {[%clk 0:02:14.1]} 17... Be7 {[%clk 0:01:39.3]} 18. Red1 {[%clk
0:02:13.9]} 18... Nc5 {[%clk 0:01:31]} 19. Ne4 {[%clk 0:01:58.5]} 19... Qb6
{[%clk 0:01:27.6]} 20. Nxc5 {[%clk 0:01:51.3]} 20... Bxc5 {[%clk 0:01:28.5]} 21.
Nd2 {[%clk 0:01:46.4]} 21... Bxg2 {[%clk 0:01:17.8]} 22. Kxg2 {[%clk 0:01:43.7]}
22... Rfd8 {[%clk 0:01:14.5]} 23. b3 {[%clk 0:01:39.5]} 23... Bd4 {[%clk
0:01:10.6]} 24. Nf3 {[%clk 0:01:36.4]} 24... Bc5 {[%clk 0:00:57.6]} 25. Qe4
{[%clk 0:01:33.5]} 25... Bxf2 {[%clk 0:00:47.8]} 26. Rd6 {[%clk 0:01:33.5]}
26... Qe3 {[%clk 0:00:27.3]} 27. Qxe3 {[%clk 0:00:43.5]} 27... Bxe3 {[%clk
0:00:28.2]} 28. Rcd1 {[%clk 0:00:41.3]} 28... Rdc8 {[%clk 0:00:25.8]} 29. R1d3
{[%clk 0:00:40.3]} 29... Bc5 {[%clk 0:00:22]} 30. Rd7 {[%clk 0:00:39]} 30... Kf8
{[%clk 0:00:20.2]} 31. Nd2 {[%clk 0:00:38.6]} 31... Be7 {[%clk 0:00:15.3]} 32.
Nc4 {[%clk 0:00:37.7]} 32... Rc5 {[%clk 0:00:13.8]} 33. Rb7 {[%clk 0:00:34.2]}
33... Rd5 {[%clk 0:00:08.5]} 34. Rf3 {[%clk 0:00:30.8]} 34... Rc8 {[%clk
0:00:08.1]} 35. Kh3 {[%clk 0:00:29.8]} 35... Rd4 {[%clk 0:00:04.4]} 36. Nb6
{[%clk 0:00:29]} 36... Rcd8 {[%clk 0:00:04.9]} 37. Nc4 {[%clk 0:00:27.8]} 37...
g5 {[%clk 0:00:05.3]} 38. Kg2 {[%clk 0:00:16.7]} 38... g4 {[%clk 0:00:05.5]} 39.
Rf2 {[%clk 0:00:17]} 39... Rd3 {[%clk 0:00:05.5]} 40. Nxa5 {[%clk 0:00:16.8]}
40... R8d7 {[%clk 0:00:03.4]} 41. Rxd7 {[%clk 0:00:14.8]} 41... Rxd7 {[%clk
0:00:04.3]} 42. Nc4 {[%clk 0:00:10.3]} 42... Bc5 {[%clk 0:00:03.9]} 43. Ra2
{[%clk 0:00:07.3]} 43... h5 {[%clk 0:00:03.6]} 44. a5 {[%clk 0:00:07.5]} 44...
Ke7 {[%clk 0:00:03.6]} 45. a6 {[%clk 0:00:07.7]} 45... Ra7 {[%clk 0:00:03.7]}
46. Ra5 {[%clk 0:00:07.6]} 46... Bd4 {[%clk 0:00:03.4]} 47. Kf1 {[%clk
0:00:07.4]} 47... Kd7 {[%clk 0:00:02.8]} 48. Nd2 {[%clk 0:00:05.1]} 48... Kc6
{[%clk 0:00:03.5]} 49. Ne4 {[%clk 0:00:05]} 49... Kb6 {[%clk 0:00:03.1]} 50. Ra4
{[%clk 0:00:04.5]} 50... Bxe5 {[%clk 0:00:02.3]} 51. Rxb4+ {[%clk 0:00:04.6]}
51... Kc6 {[%clk 0:00:03.2]} 52. Ra4 {[%clk 0:00:04.7]} 52... Kb5 {[%clk
0:00:03.7]} 53. Ke2 {[%clk 0:00:02.6]} 53... f6 {[%clk 0:00:02.5]} 54. Nd2
{[%clk 0:00:02.2]} 54... Rxa6 {[%clk 0:00:02.6]} 55. Rxa6 {[%clk 0:00:02.3]}
55... Kxa6 {[%clk 0:00:03.5]} 56. Nc4 {[%clk 0:00:03.2]} 56... Bd4 {[%clk
0:00:03.9]} 57. Kd3 {[%clk 0:00:03]} 57... Bg1 {[%clk 0:00:04.3]} 58. Nd2 {[%clk
0:00:02.4]} 58... Bxh2 {[%clk 0:00:04]} 59. Ne4 {[%clk 0:00:02.8]} 59... f5
{[%clk 0:00:03.4]} 60. Nc5+ {[%clk 0:00:03.3]} 60... Kb5 {[%clk 0:00:03.6]} 61.
Nxe6 {[%clk 0:00:03.8]} 61... Bxg3 {[%clk 0:00:04.1]} 62. Ng7 {[%clk 0:00:04.2]}
62... h4 {[%clk 0:00:03]} 63. Nxf5 {[%clk 0:00:04.5]} 63... Bf2 {[%clk
0:00:02.8]} 64. Ke2 {[%clk 0:00:04.3]} 64... g3 {[%clk 0:00:02.3]} 65. Nxh4
{[%clk 0:00:03.6]} 65... Kb4 {[%clk 0:00:02.7]} 66. Kf3 {[%clk 0:00:03.1]} 66...
Be1 {[%clk 0:00:02.6]} 67. Nf5 {[%clk 0:00:03.3]} 67... Kxb3 {[%clk 0:00:02.2]}
68. Kg2 {[%clk 0:00:03.6]} 68... Bf2 {[%clk 0:00:02.3]} 69. Nxg3 {[%clk
0:00:04]} 1/2-1/2

[Event "Early-Titled-Tuesday-Blitz-December-26-2023"]
[Site "Chess.com"]
[Date "2023.12.26"]
[Round "2"]
[White "slorovel"]
[Black "Elsa167"]
[Result "0-1"]
[WhiteElo "2642"]
[BlackElo "2990"]
[TimeControl "180+1"]
[EndTime "8:18:43 PST"]
[Termination "Elsa167 won by resignation"]

1. e4 {[%clk 0:03:00.9]} 1... e6 {[%clk 0:02:57.2]} 2. d4 {[%clk 0:02:59.8]}
2... d5 {[%clk 0:02:57.9]} 3. exd5 {[%clk 0:03:00.1]} 3... exd5 {[%clk
0:02:58.8]} 4. Bd3 {[%clk 0:03:00.3]} 4... Nf6 {[%clk 0:02:57]} 5. Ne2 {[%clk
0:02:59.1]} 5... Bd6 {[%clk 0:02:57.1]} 6. O-O {[%clk 0:02:58.9]} 6... h6 {[%clk
0:02:57]} 7. Nbc3 {[%clk 0:02:56.3]} 7... O-O {[%clk 0:02:56.8]} 8. Bf4 {[%clk
0:02:56.4]} 8... Re8 {[%clk 0:02:52.4]} 9. f3 {[%clk 0:02:50.8]} 9... c5 {[%clk
0:02:44.7]} 10. Bxd6 {[%clk 0:02:41]} 10... Qxd6 {[%clk 0:02:44.7]} 11. dxc5
{[%clk 0:02:34.6]} 11... Qxc5+ {[%clk 0:02:44.6]} 12. Kh1 {[%clk 0:02:34.8]}
12... Nc6 {[%clk 0:02:42.6]} 13. Ng3 {[%clk 0:02:29.2]} 13... Bd7 {[%clk
0:02:18.4]} 14. Qd2 {[%clk 0:02:13.5]} 14... Qb4 {[%clk 0:02:06.6]} 15. a3
{[%clk 0:02:08]} 15... Qh4 {[%clk 0:02:06.3]} 16. Qf2 {[%clk 0:02:01.7]} 16...
d4 {[%clk 0:01:42.2]} 17. Nce4 {[%clk 0:01:45.4]} 17... Nd5 {[%clk 0:01:38.3]}
18. Nd6 {[%clk 0:01:35.9]} 18... Re5 {[%clk 0:01:11.7]} 19. f4 {[%clk
0:01:11.9]} 19... Re3 {[%clk 0:01:10.7]} 20. Ngf5 {[%clk 0:01:06.8]} 20... Qxf2
{[%clk 0:01:09.6]} 21. Rxf2 {[%clk 0:01:07.7]} 21... Bxf5 {[%clk 0:01:09]} 22.
Nxf5 {[%clk 0:01:07.8]} 22... Ree8 {[%clk 0:01:03.9]} 23. Nd6 {[%clk 0:01:05.1]}
23... Re7 {[%clk 0:00:59.6]} 24. f5 {[%clk 0:00:59.2]} 24... Nf6 {[%clk
0:00:47.7]} 25. h3 {[%clk 0:00:55]} 25... Rd8 {[%clk 0:00:47.1]} 26. Nc4 {[%clk
0:00:46.9]} 26... Kf8 {[%clk 0:00:43.5]} 27. b4 {[%clk 0:00:43.3]} 27... a6
{[%clk 0:00:39.5]} 28. Kg1 {[%clk 0:00:37]} 28... b5 {[%clk 0:00:38.4]} 29. Nd2
{[%clk 0:00:34.5]} 29... Ne5 {[%clk 0:00:35.6]} 30. Nb3 {[%clk 0:00:34.4]} 30...
Nxd3 {[%clk 0:00:24.7]} 31. cxd3 {[%clk 0:00:35.3]} 31... Rd6 {[%clk 0:00:18.2]}
32. Nc5 {[%clk 0:00:33.9]} 32... Nd5 {[%clk 0:00:15.7]} 33. Raa2 {[%clk
0:00:30.1]} 33... Nc3 {[%clk 0:00:16]} 34. Rac2 {[%clk 0:00:23.7]} 34... Re1+
{[%clk 0:00:16.1]} 35. Kh2 {[%clk 0:00:23.2]} 35... Ke7 {[%clk 0:00:13.4]} 36.
Rf4 {[%clk 0:00:22]} 36... Re5 {[%clk 0:00:07.6]} 37. Nb3 {[%clk 0:00:21.2]}
37... Ne2 {[%clk 0:00:07.2]} 38. Rf2 {[%clk 0:00:19.8]} 38... Nc3 {[%clk
0:00:07.8]} 39. Rf4 {[%clk 0:00:20]} 39... Ne2 {[%clk 0:00:01.5]} 40. Re4 {[%clk
0:00:18.6]} 40... Rxe4 {[%clk 0:00:01.4]} 41. dxe4 {[%clk 0:00:19.5]} 41... d3
{[%clk 0:00:01.1]} 42. Rd2 {[%clk 0:00:17.4]} 42... Nc3 {[%clk 0:00:01.8]} 43.
e5 {[%clk 0:00:17.6]} 43... Rd5 {[%clk 0:00:02.2]} 44. Nc5 {[%clk 0:00:16.5]}
44... a5 {[%clk 0:00:02.3]} 45. Rxd3 {[%clk 0:00:15.8]} 45... Rxd3 {[%clk
0:00:02.2]} 46. Nxd3 {[%clk 0:00:16.7]} 46... a4 {[%clk 0:00:02.2]} 47. Nf4
{[%clk 0:00:13.3]} 47... Nb1 {[%clk 0:00:01.9]} 48. Nd5+ {[%clk 0:00:13.5]}
48... Kd8 {[%clk 0:00:02]} 49. g4 {[%clk 0:00:07.8]} 49... Nxa3 {[%clk
0:00:02.3]} 50. Nc3 {[%clk 0:00:08]} 50... Nc2 {[%clk 0:00:02.5]} 51. Nxb5
{[%clk 0:00:08.2]} 51... Nxb4 {[%clk 0:00:03.2]} 52. h4 {[%clk 0:00:08.2]} 52...
Nc2 {[%clk 0:00:03.6]} 53. Nc3 {[%clk 0:00:08]} 53... a3 {[%clk 0:00:03.5]} 54.
g5 {[%clk 0:00:08.5]} 54... hxg5 {[%clk 0:00:03.5]} 55. hxg5 {[%clk 0:00:09.4]}
55... Nd4 {[%clk 0:00:03.6]} 56. f6 {[%clk 0:00:08.1]} 56... gxf6 {[%clk
0:00:04.5]} 57. exf6 {[%clk 0:00:07.4]} 57... Nf3+ {[%clk 0:00:05.1]} 58. Kg3
{[%clk 0:00:06.9]} 58... Nxg5 {[%clk 0:00:06]} 59. Kf4 {[%clk 0:00:06.9]} 59...
Ne6+ {[%clk 0:00:06]} 60. Ke5 {[%clk 0:00:07.1]} 60... Kd7 {[%clk 0:00:06.3]}
61. Na2 {[%clk 0:00:06.5]} 61... Nc5 {[%clk 0:00:06.2]} 62. Kd5 {[%clk
0:00:06.2]} 62... Nd3 {[%clk 0:00:05.4]} 63. Kd4 {[%clk 0:00:06.3]} 63... Nf2
{[%clk 0:00:04.8]} 64. Kc3 {[%clk 0:00:06.5]} 64... Ke6 {[%clk 0:00:04.7]} 65.
Kb3 {[%clk 0:00:07]} 65... Kxf6 {[%clk 0:00:05.4]} 66. Kxa3 {[%clk 0:00:07.4]}
66... Ke5 {[%clk 0:00:06.2]} 67. Kb2 {[%clk 0:00:07.9]} 67... Kd4 {[%clk
0:00:06.2]} 68. Kc2 {[%clk 0:00:08.2]} 68... Ne4 {[%clk 0:00:06.2]} 69. Nc1
{[%clk 0:00:06.3]} 69... Ke3 {[%clk 0:00:06.1]} 70. Kd1 {[%clk 0:00:05.8]} 70...
Nf2+ {[%clk 0:00:03.8]} 71. Ke1 {[%clk 0:00:03]} 71... Nd3+ {[%clk 0:00:03.8]}
72. Nxd3 {[%clk 0:00:03.6]} 72... Kxd3 {[%clk 0:00:04.7]} 73. Kf2 {[%clk
0:00:04.2]} 73... Ke4 {[%clk 0:00:05.4]} 74. Ke2 {[%clk 0:00:04]} 74... Kf4
{[%clk 0:00:05.7]} 75. Kf2 {[%clk 0:00:04.4]} 75... f5 {[%clk 0:00:06.2]} 76.
Kf1 {[%clk 0:00:05]} 76... Kf3 {[%clk 0:00:06.3]} 77. Ke1 {[%clk 0:00:05.9]}
77... Kg2 {[%clk 0:00:06.6]} 78. Ke2 {[%clk 0:00:06.1]} 78... f4 {[%clk
0:00:07.3]} 79. Ke1 {[%clk 0:00:06.7]} 79... f3 {[%clk 0:00:08.2]} 0-1

[Event "Early-Titled-Tuesday-Blitz-December-26-2023"]
[Site "Chess.com"]
[Date "2023.12.26"]
[Round "2"]
[White "CuattroPrincesses"]
[Black "TheFireChess"]
[Result "1/2-1/2"]
[WhiteElo "2275"]
[BlackElo "2513"]
[TimeControl "180+1"]
[EndTime "8:19:01 PST"]
[Termination "Game drawn by repetition"]

1. e4 {[%clk 0:03:00.9]} 1... c6 {[%clk 0:02:58.3]} 2. c4 {[%clk 0:02:59.8]}
2... d5 {[%clk 0:02:59.2]} 3. exd5 {[%clk 0:02:59.4]} 3... cxd5 {[%clk
0:03:00.1]} 4. cxd5 {[%clk 0:02:59.7]} 4... Nf6 {[%clk 0:02:59.1]} 5. Nc3 {[%clk
0:03:00.2]} 5... g6 {[%clk 0:02:56.9]} 6. Bc4 {[%clk 0:02:59.6]} 6... Bg7 {[%clk
0:02:57.2]} 7. Nf3 {[%clk 0:02:59.3]} 7... O-O {[%clk 0:02:57.7]} 8. d3 {[%clk
0:02:59.4]} 8... Nbd7 {[%clk 0:02:56.1]} 9. O-O {[%clk 0:02:52.9]} 9... Nb6
{[%clk 0:02:55.8]} 10. Qb3 {[%clk 0:02:52.7]} 10... Bf5 {[%clk 0:02:56.3]} 11.
Re1 {[%clk 0:02:48.1]} 11... Rc8 {[%clk 0:02:54.1]} 12. Be3 {[%clk 0:02:35.1]}
12... Nfd7 {[%clk 0:02:44.1]} 13. Bd4 {[%clk 0:02:11.5]} 13... Nc5 {[%clk
0:02:34.3]} 14. Qd1 {[%clk 0:02:08.8]} 14... Nxc4 {[%clk 0:02:20.7]} 15. dxc4
{[%clk 0:02:09.7]} 15... Nd3 {[%clk 0:02:20.3]} 16. Re2 {[%clk 0:01:46.6]} 16...
Rxc4 {[%clk 0:02:16.9]} 17. Bxg7 {[%clk 0:01:36.9]} 17... Kxg7 {[%clk
0:02:17.8]} 18. Ne5 {[%clk 0:01:30.1]} 18... Nxe5 {[%clk 0:01:34.4]} 19. Rxe5
{[%clk 0:01:31]} 19... e6 {[%clk 0:01:18.1]} 20. Qb3 {[%clk 0:01:20]} 20... exd5
{[%clk 0:01:09.8]} 21. Rxd5 {[%clk 0:01:10.6]} 21... Qc7 {[%clk 0:01:10.1]} 22.
Rad1 {[%clk 0:01:01.7]} 22... Be6 {[%clk 0:01:08.9]} 23. Rd6 {[%clk 0:00:57.1]}
23... a6 {[%clk 0:00:47.6]} 24. Qc2 {[%clk 0:00:45.8]} 24... Rc8 {[%clk
0:00:43.5]} 25. Qe2 {[%clk 0:00:45.5]} 25... Qc5 {[%clk 0:00:37.6]} 26. h3
{[%clk 0:00:44.9]} 26... Rf4 {[%clk 0:00:28.4]} 27. R1d2 {[%clk 0:00:38.2]}
27... Qf5 {[%clk 0:00:24.8]} 28. Qe3 {[%clk 0:00:36.2]} 28... Rfc4 {[%clk
0:00:18.7]} 29. R6d4 {[%clk 0:00:35.9]} 29... R4c5 {[%clk 0:00:18.1]} 30. Rf4
{[%clk 0:00:34.4]} 30... Qe5 {[%clk 0:00:18.7]} 31. Qd4 {[%clk 0:00:33.1]} 31...
Qxd4 {[%clk 0:00:18.8]} 32. Rfxd4 {[%clk 0:00:33.3]} 32... b5 {[%clk 0:00:19.4]}
33. a3 {[%clk 0:00:32.7]} 33... a5 {[%clk 0:00:18.9]} 34. g4 {[%clk 0:00:31]}
34... Rb8 {[%clk 0:00:18.8]} 35. Ne4 {[%clk 0:00:29.9]} 35... Rc1+ {[%clk
0:00:18.1]} 36. Kg2 {[%clk 0:00:29.1]} 36... b4 {[%clk 0:00:18.6]} 37. axb4
{[%clk 0:00:28.8]} 37... axb4 {[%clk 0:00:18.2]} 38. Ng5 {[%clk 0:00:28.4]}
38... Ba2 {[%clk 0:00:17.6]} 39. Rd7 {[%clk 0:00:24.1]} 39... h6 {[%clk
0:00:18.1]} 40. Nf3 {[%clk 0:00:23.3]} 40... Re8 {[%clk 0:00:16.9]} 41. R7d4
{[%clk 0:00:21.1]} 41... Rb8 {[%clk 0:00:15.4]} 42. Ne5 {[%clk 0:00:20.1]} 42...
Re1 {[%clk 0:00:14.1]} 43. Nd3 {[%clk 0:00:20]} 43... Re6 {[%clk 0:00:13.3]} 44.
Nxb4 {[%clk 0:00:19.8]} 44... Bb3 {[%clk 0:00:13.6]} 45. Nd3 {[%clk 0:00:19]}
45... Reb6 {[%clk 0:00:13.2]} 46. Nf4 {[%clk 0:00:18.9]} 46... g5 {[%clk
0:00:12.5]} 47. Nh5+ {[%clk 0:00:18.7]} 47... Kf8 {[%clk 0:00:12.8]} 48. Rd8+
{[%clk 0:00:18.6]} 48... Rxd8 {[%clk 0:00:13.5]} 49. Rxd8+ {[%clk 0:00:18.6]}
49... Ke7 {[%clk 0:00:14.4]} 50. Rh8 {[%clk 0:00:18.6]} 50... Bd5+ {[%clk
0:00:14.6]} 51. Kg3 {[%clk 0:00:18.2]} 51... Rb3+ {[%clk 0:00:14.9]} 52. Kh2
{[%clk 0:00:18.1]} 52... Rxb2 {[%clk 0:00:15.5]} 53. Rxh6 {[%clk 0:00:17.8]}
53... Rxf2+ {[%clk 0:00:15.1]} 54. Kg1 {[%clk 0:00:18.3]} 54... Rg2+ {[%clk
0:00:15.7]} 55. Kf1 {[%clk 0:00:18.8]} 55... Rh2 {[%clk 0:00:16.3]} 56. Ng3
{[%clk 0:00:17.8]} 56... Ra2 {[%clk 0:00:15.6]} 57. Nf5+ {[%clk 0:00:17.9]}
57... Kd7 {[%clk 0:00:16.1]} 58. Rh7 {[%clk 0:00:18.1]} 58... Ra1+ {[%clk
0:00:15.1]} 59. Kf2 {[%clk 0:00:17.9]} 59... Ra3 {[%clk 0:00:15.8]} 60. Kg1
{[%clk 0:00:17.1]} 60... Be6 {[%clk 0:00:13.3]} 61. Nd4 {[%clk 0:00:14.6]} 61...
Bd5 {[%clk 0:00:13.6]} 62. Nf5 {[%clk 0:00:14.9]} 62... Ke6 {[%clk 0:00:13]} 63.
Kf2 {[%clk 0:00:15]} 63... Ke5 {[%clk 0:00:13.2]} 64. Ne3 {[%clk 0:00:14.9]}
64... Be6 {[%clk 0:00:13.2]} 65. Rh5 {[%clk 0:00:13.1]} 65... f6 {[%clk
0:00:13.5]} 66. Rh8 {[%clk 0:00:11.7]} 66... Kf4 {[%clk 0:00:13.8]} 67. Ng2+
{[%clk 0:00:10.3]} 67... Ke5 {[%clk 0:00:14.4]} 68. Re8 {[%clk 0:00:10.6]} 68...
Ra2+ {[%clk 0:00:14.9]} 69. Kg3 {[%clk 0:00:10.6]} 69... Ra3+ {[%clk 0:00:15.7]}
70. Kf2 {[%clk 0:00:11]} 70... Kd6 {[%clk 0:00:16.2]} 71. Ne3 {[%clk 0:00:10.2]}
71... Bd7 {[%clk 0:00:16.7]} 72. Rf8 {[%clk 0:00:10.2]} 72... Ke5 {[%clk
0:00:17]} 73. Rd8 {[%clk 0:00:09.9]} 73... Be6 {[%clk 0:00:16.4]} 74. Re8 {[%clk
0:00:09.5]} 74... Ra2+ {[%clk 0:00:16.5]} 75. Kf3 {[%clk 0:00:09.1]} 75... Ra3
{[%clk 0:00:17.4]} 76. Rb8 {[%clk 0:00:07.4]} 76... Bd5+ {[%clk 0:00:16.9]} 77.
Kf2 {[%clk 0:00:07.4]} 77... Be4 {[%clk 0:00:17.5]} 78. Rb5+ {[%clk 0:00:06.9]}
78... Kf4 {[%clk 0:00:17.6]} 79. Ng2+ {[%clk 0:00:06]} 79... Bxg2 {[%clk
0:00:17.5]} 80. Kxg2 {[%clk 0:00:06.2]} 80... Rg3+ {[%clk 0:00:18.4]} 81. Kh2
{[%clk 0:00:06.1]} 81... Rf3 {[%clk 0:00:19.1]} 82. Rf5+ {[%clk 0:00:05.9]}
82... Ke3 {[%clk 0:00:19.7]} 83. Ra5 {[%clk 0:00:05]} 83... Kf2 {[%clk 0:00:20]}
84. Ra2+ {[%clk 0:00:04.4]} 84... Kf1 {[%clk 0:00:20.6]} 85. Ra1+ {[%clk
0:00:04.8]} 85... Ke2 {[%clk 0:00:21.2]} 86. Ra2+ {[%clk 0:00:05.3]} 86... Ke3
{[%clk 0:00:21.9]} 87. Ra3+ {[%clk 0:00:05.8]} 87... Ke4 {[%clk 0:00:22.6]} 88.
Ra5 {[%clk 0:00:06.1]} 88... Rf2+ {[%clk 0:00:22]} 89. Kg3 {[%clk 0:00:06.6]}
89... Rf3+ {[%clk 0:00:22.2]} 90. Kh2 {[%clk 0:00:07.1]} 90... Rf4 {[%clk
0:00:23.1]} 91. Ra4+ {[%clk 0:00:06.9]} 91... Ke3 {[%clk 0:00:23.4]} 92. Ra6
{[%clk 0:00:07.5]} 92... Rf3 {[%clk 0:00:23.3]} 93. Ra3+ {[%clk 0:00:07.3]}
93... Kf4 {[%clk 0:00:23.7]} 94. Ra4+ {[%clk 0:00:07.6]} 94... Ke5 {[%clk
0:00:23.5]} 95. Ra5+ {[%clk 0:00:07.9]} 95... Ke4 {[%clk 0:00:24.1]} 96. Ra4+
{[%clk 0:00:08.1]} 96... Ke3 {[%clk 0:00:24.7]} 97. Ra3+ {[%clk 0:00:08.6]}
1/2-1/2